bitfinex/quotes_SOLUSD_20240604
["timestamp","ask_amount","ask_price","bid_price","bid_amount"]
[1717483476991,2.2333,165.67,165.63,7.03]
[1717483477905,2.2333,165.67,165.61,2.234]
[1717483478107,2.2333,165.67,165.63,7.03]
[1717483478319,2.2333,165.67,165.62,7.03]
[1717483478688,2.2333,165.67,165.62,9.264]
[1717483479720,2.2335,165.66,165.62,7.03]
[1717483479895,2.2335,165.66,165.61,2.2341]
[1717483480096,2.2335,165.66,165.62,7.03]
[1717483480286,2.2335,165.66,165.61,2.2341]
[1717483480490,8.4162,165.66,165.61,2.2341]
[1717483480722,8.4162,165.66,165.61,9.2641]
[1717483481416,6.1827,165.66,165.61,9.2641]
[1717483481809,6.1827,165.66,165.61,2.2341]
[1717483482112,2.2336,165.65,165.6,2.2342]
[1717483482309,2.2336,165.65,165.61,7.03]
[1717483482517,8.4162,165.66,165.61,7.03]
[1717483483617,2.2333,165.67,165.63,7.03]
[1717483484508,2.2335,165.66,165.63,7.03]
[1717483485115,2.2335,165.66,165.62,7.03]
[1717483485289,2.2335,165.66,165.61,2.2341]
[1717483485493,2.2335,165.66,165.62,7.03]
[1717483486022,2.2335,165.66,165.61,7.03]
[1717483487621,2.2335,165.66,165.62,7.03]
[1717483488422,2.2335,165.66,165.61,2.2341]
[1717483488600,2.2336,165.65,165.6,2.2342]
[1717483488800,2.2336,165.65,165.62,7.03]
[1717483489701,2.2335,165.66,165.62,7.03]
[1717483490793,2.2336,165.65,165.62,7.03]
[1717483491219,2.2336,165.65,165.61,7.03]
[1717483492517,7.03,165.67,165.61,7.03]
[1717483492518,21.9674,165.64,165.61,7.03]
[1717483492710,21.9674,165.64,165.53,6.21312614]
[1717483492711,2.2342,165.61,165.56,9.2647]
[1717483492915,2.2343,165.6,165.56,7.03]
[1717483493131,2.2343,165.6,165.54,2.235]
[1717483493315,2.2343,165.6,165.56,7.03]
[1717483493525,2.2343,165.6,165.54,2.235]
[1717483493828,2.2343,165.6,165.56,7.03]
[1717483494198,2.2343,165.6,165.55,2.2349]
[1717483494394,2.2343,165.6,165.52,20.0]
[1717483494637,2.2343,165.6,165.55,7.03]
[1717483496329,2.2343,165.6,165.54,2.235]
[1717483496508,8.3529,165.6,165.55,7.03]
[1717483498838,8.3529,165.6,165.55,9.2649]
[1717483500817,8.3529,165.6,165.56,7.03]
[1717483501239,6.1186,165.6,165.56,7.03]
[1717483501443,6.1186,165.6,165.55,2.2349]
[1717483501743,8.3529,165.6,165.55,2.2349]
[1717483503435,8.3529,165.6,165.55,9.2649]
[1717483503645,8.3529,165.6,165.55,2.2349]
[1717483503970,2.2344,165.59,165.55,7.03]
[1717483504420,2.2344,165.59,165.54,2.235]
[1717483504421,2.2344,165.59,165.53,2.2351]
[1717483504921,2.2344,165.59,165.55,7.03]
[1717483509629,2.2344,165.59,165.53,2.2351]
[1717483509830,2.2344,165.59,165.54,7.03]
[1717483510327,2.2345,165.58,165.54,7.03]
[1717483511322,2.2344,165.59,165.54,9.2651]
[1717483512252,2.2344,165.59,165.55,7.03]
[1717483512639,8.3529,165.6,165.56,7.03]
[1717483513333,2.2344,165.59,165.56,7.03]
[1717483514855,15.6376,165.63,165.58,9.2644]
[1717483514856,2.2339,165.63,165.58,9.2644]
[1717483515170,2.234,165.62,165.59,7.03]
[1717483515675,2.234,165.62,165.58,7.03]
[1717483515974,10.5448,165.64,165.53,4.4703]
[1717483516176,7.03,165.62,165.56,7.03]
[1717483516355,2.2343,165.6,165.55,2.2348]
[1717483516559,2.2343,165.6,165.56,7.03]
[1717483516764,2.2342,165.61,165.56,9.2648]
[1717483516947,2.2342,165.61,165.57,7.03]
[1717483519085,2.2342,165.61,165.56,2.2348]
[1717483519291,2.2342,165.61,165.57,7.03]
[1717483521001,2.2342,165.61,165.58,7.03]
[1717483521169,10.5448,165.64,165.59,7.03]
[1717483521369,2.2339,165.63,165.59,7.03]
[1717483521980,2.234,165.62,165.59,7.03]
[1717483528104,2.234,165.62,165.58,9.2645]
[1717483529294,2.2339,165.63,165.59,7.03]
[1717483530294,2.2339,165.63,165.6,7.03]
[1717483531421,2.2335,165.66,165.62,7.03]
[1717483531717,2.2334,165.67,165.63,7.03]
[1717483533107,2.2334,165.67,165.64,7.03]
[1717483533600,8.4091,165.68,165.64,7.03]
[1717483533794,2.2332,165.68,165.64,7.03]
[1717483534888,2.2332,165.68,165.65,7.03]
[1717483535189,2.2331,165.69,165.66,7.03]
[1717483537301,2.233,165.7,165.67,7.03]
[1717483538020,21.9359,165.76,165.69,7.03]
[1717483538215,2.2327,165.72,165.69,7.03]
[1717483539012,2.2324,165.74,165.71,7.03]
[1717483539227,2.2325,165.73,165.71,7.03]
[1717483539591,2.2325,165.73,165.68,2.2331]
[1717483539788,2.2326,165.72,165.67,2.5733]
[1717483539992,7.03,165.75,165.67,2.5733]
[1717483539993,7.03,165.74,165.67,0.34]
[1717483540295,2.2329,165.71,165.68,7.03]
[1717483540489,2.2327,165.72,165.67,9.6033]
[1717483541594,9.10048901,165.74,165.68,9.2631]
[1717483541790,2.2326,165.73,165.68,9.2631]
[1717483542214,2.2326,165.73,165.68,2.2331]
[1717483542389,2.2326,165.73,165.69,7.03]
[1717483542584,2.2326,165.73,165.68,2.2331]
[1717483542891,2.2326,165.73,165.69,7.03]
[1717483543608,2.2324,165.74,165.69,9.263]
[1717483543812,2.2324,165.74,165.7,7.03]
[1717483544319,2.2325,165.73,165.7,7.03]
[1717483545323,2.2325,165.73,165.69,9.263]
[1717483545509,2.2325,165.73,165.69,2.233]
[1717483545699,2.2325,165.73,165.69,9.263]
[1717483546097,7.03,165.75,165.67,0.34]
[1717483546322,9.2627,165.72,165.67,2.4032]
[1717483546514,9.2627,165.72,165.67,9.2632]
[1717483548231,2.2327,165.72,165.67,9.2632]
[1717483548906,2.2327,165.72,165.67,2.2332]
[1717483549202,4.30318901,165.72,165.67,9.2632]
[1717483549407,2.2327,165.72,165.67,9.2632]
[1717483550220,2.2327,165.72,165.68,2.2332]
[1717483551128,4.30318901,165.72,165.68,2.2332]
[1717483551323,4.30318901,165.72,165.67,2.2332]
[1717483551737,2.2327,165.72,165.67,2.2332]
[1717483551921,4.30318901,165.72,165.67,2.2332]
[1717483552225,2.2327,165.72,165.67,2.2332]
[1717483552435,4.30318901,165.72,165.67,2.2332]
[1717483552731,2.2327,165.72,165.67,2.2332]
[1717483554131,9.2626,165.73,165.68,2.2331]
[1717483554321,2.2326,165.73,165.69,2.233]
[1717483554637,9.2626,165.73,165.68,2.2331]
[1717483554937,9.2626,165.73,165.69,2.233]
[1717483555307,9.2626,165.73,165.68,2.2331]
[1717483555824,2.2324,165.74,165.69,2.233]
[1717483556032,2.2324,165.74,165.7,2.2329]
[1717483556214,9.2624,165.74,165.7,2.2329]
[1717483556530,2.2324,165.74,165.69,9.263]
[1717483557103,2.2325,165.73,165.69,9.263]
[1717483558937,2.2323,165.75,165.7,9.2629]
[1717483559135,7.03,165.76,165.71,9.2628]
[1717483559436,38.28696932,165.79,165.71,9.2628]
[1717483559754,2.2322,165.75,165.71,7.03]
[1717483560343,7.03,165.77,165.72,7.03]
[1717483560850,2.2322,165.76,165.72,7.03]
[1717483562825,2.232,165.77,165.73,7.03]
[1717483563023,2.2319,165.78,165.73,9.2625]
[1717483563615,2.232,165.77,165.73,7.03]
[1717483564747,11.493,165.81,165.73,9.2624]
[1717483564959,2.2316,165.8,165.75,7.03]
[1717483565167,2.2316,165.8,165.75,9.2622]
[1717483567229,2.2317,165.79,165.75,7.03]
[1717483569659,2.2317,165.79,165.76,1.42318977]
[1717483570576,2.2317,165.79,165.75,7.03]
[1717483570771,2.2317,165.79,165.76,1.42276047]
[1717483571135,2.2317,165.79,165.74,2.2323]
[1717483571360,2.232,165.77,165.72,8.5834]
[1717483571663,2.2322,165.76,165.72,7.37]
[1717483572330,2.2322,165.76,165.72,9.6026]
[1717483572541,9.262,165.77,165.72,9.6026]
[1717483574376,2.232,165.77,165.72,9.6026]
[1717483574956,9.2619,165.78,165.73,2.2325]
[1717483575359,2.2319,165.78,165.73,9.2625]
[1717483576062,2.2317,165.79,165.74,2.2323]
[1717483576471,9.2617,165.79,165.74,2.2323]
[1717483576689,2.2318,165.78,165.74,2.2323]
[1717483576856,2.2318,165.78,165.73,9.2625]
[1717483577872,2.232,165.77,165.73,7.03]
[1717483578954,2.232,165.77,165.73,9.2625]
[1717483579357,2.2319,165.78,165.73,9.2625]
[1717483579659,9.2619,165.78,165.73,9.2625]
[1717483581385,9.262,165.77,165.72,2.2326]
[1717483582283,9.2621,165.76,165.71,2.2327]
[1717483582487,9.2621,165.76,165.7,7.03]
[1717483582488,2.2323,165.75,165.7,2.5729]
[1717483582722,9.2623,165.75,165.7,2.4029]
[1717483583592,2.2321,165.76,165.71,2.2327]
[1717483583805,9.2621,165.76,165.71,2.2327]
[1717483585302,2.2321,165.76,165.71,2.2327]
[1717483585506,9.2621,165.76,165.71,2.2327]
[1717483585714,7.03,165.76,165.72,2.2326]
[1717483586016,2.2321,165.76,165.71,2.2327]
[1717483586216,2.2321,165.76,165.72,2.2326]
[1717483586217,7.03,165.76,165.72,2.2326]
[1717483586422,2.232,165.77,165.72,15.7213]
[1717483588319,2.232,165.77,165.73,13.3002]
[1717483588505,13.64259909,165.82,165.73,7.03]
[1717483588707,2.2318,165.78,165.73,9.2624]
[1717483589927,9.2618,165.78,165.73,9.2624]
[1717483593406,2.232,165.77,165.73,9.2624]
[1717483593729,2.232,165.77,165.73,7.03]
[1717483594318,2.232,165.77,165.73,9.2625]
[1717483595428,2.232,165.77,165.73,15.4536]
[1717483595813,2.2319,165.78,165.74,6.0217]
[1717483596015,2.2318,165.79,165.74,15.284]
[1717483598137,2.2318,165.78,165.74,13.0517]
[1717483602036,2.2318,165.78,165.74,6.0217]
[1717483602451,4.4624,165.83,165.75,7.03]
[1717483602748,2.2317,165.8,165.75,13.5787]
[1717483603614,2.2317,165.79,165.75,13.5787]
[1717483604420,2.2317,165.79,165.75,7.03]
[1717483604625,2.2317,165.79,165.76,6.2677]
[1717483605346,2.2316,165.8,165.76,13.2977]
[1717483605650,2.2316,165.8,165.77,6.1385]
[1717483608646,2.2314,165.81,165.78,7.03]
[1717483608946,2.2313,165.82,165.78,6.5112]
[1717483609123,2.2313,165.82,165.79,7.03]
[1717483613054,2.2313,165.82,165.78,13.5412]
[1717483613241,2.2313,165.82,165.78,13.4507]
[1717483613442,2.2313,165.82,165.78,6.4207]
[1717483613753,2.2313,165.82,165.78,13.4507]
[1717483614641,2.2312,165.83,165.78,15.6825]
[1717483615431,2.2312,165.83,165.78,9.2618]
[1717483615632,2.2312,165.83,165.79,13.2129]
[1717483618253,4.4618,165.85,165.77,0.34]
[1717483618254,2.2311,165.84,165.8,13.5008]
[1717483618436,2.231,165.85,165.81,13.5008]
[1717483618636,2.231,165.85,165.81,14.70623971]
[1717483618839,13.74903091,165.89,165.81,6.4708]
[1717483618840,11.51853091,165.89,165.81,6.4708]
[1717483619034,2.2308,165.86,165.82,13.4748]
[1717483619230,2.2308,165.86,165.83,7.03]
[1717483619466,2.2308,165.86,165.84,1.20485822]
[1717483619849,2.2305,165.88,165.83,15.2743]
[1717483620053,2.2306,165.87,165.83,15.2743]
[1717483620576,2.2306,165.87,165.83,13.0432]
[1717483621266,2.2305,165.88,165.84,7.37]
[1717483621475,2.2305,165.88,165.84,13.7173]
[1717483621663,0.03763951,165.9,165.84,15.9483]
[1717483621854,0.03763951,165.9,165.85,8.3303]
[1717483621855,2.2304,165.89,165.85,8.3303]
[1717483622165,2.2304,165.89,165.85,15.3603]
[1717483622364,2.2304,165.89,165.85,13.1294]
[1717483622585,2.26793951,165.9,165.85,15.3603]
[1717483622769,2.26793951,165.9,165.85,9.2609]
[1717483622963,2.26793951,165.9,165.86,13.5071]
[1717483623177,0.03763951,165.9,165.86,13.5071]
[1717483623379,2.26783951,165.9,165.86,13.5071]
[1717483623755,2.26783951,165.9,165.87,7.03]
[1717483624368,2.2304,165.89,165.87,7.03]
[1717483624575,2.2304,165.89,165.86,13.6771]
[1717483624755,2.2304,165.89,165.87,0.17]
[1717483625571,2.26793951,165.9,165.87,0.17]
[1717483625771,0.03763951,165.9,165.89,6.3947]
[1717483625963,0.03763951,165.9,165.89,31.806]
[1717483627253,0.03763951,165.9,165.89,24.776]
[1717483627567,0.03763951,165.9,165.89,31.806]
[1717483627766,0.03763951,165.9,165.89,24.776]
[1717483627954,0.03763951,165.9,165.89,31.806]
[1717483630476,0.03763951,165.9,165.89,24.776]
[1717483630649,0.03763951,165.9,165.89,31.806]
[1717483633785,0.03763951,165.9,165.89,8.965]
[1717483636165,0.03763951,165.9,165.89,0.34]
[1717483636380,0.03763951,165.9,165.87,2.2306]
[1717483636769,0.03763951,165.9,165.88,2.2304]
[1717483637784,0.03763951,165.9,165.89,0.34]
[1717483639285,0.03763951,165.9,165.89,2.5703]
[1717483644682,0.03763951,165.9,165.89,8.6726]
[1717483645703,0.03763951,165.9,165.89,2.5703]
[1717483659203,0.03763951,165.9,165.89,122.5703]
[1717483669341,0.03763951,165.9,165.89,129.6003]
[1717483673478,0.03763951,165.9,165.89,122.5703]
[1717483673969,0.03763951,165.9,165.89,2.5703]
[1717483679457,0.03763951,165.9,165.89,2.4003]
[1717483680289,0.03763951,165.9,165.89,0.17]
[1717483680668,0.03763951,165.9,165.89,0.34]
[1717483681688,0.03763951,165.9,165.89,2.5703]
[1717483688000,0.03763951,165.9,165.89,122.5703]
[1717483688185,0.03763951,165.9,165.89,134.061]
[1717483688603,0.03763951,165.9,165.89,127.031]
[1717483690310,0.03763951,165.9,165.89,2.5703]
[1717483692201,0.03763951,165.9,165.89,122.5703]
[1717483696120,0.03763951,165.9,165.89,129.6003]
[1717483699133,0.03763951,165.9,165.89,134.061]
[1717483704338,0.03763951,165.9,165.89,176.9621]
[1717483704728,0.03763951,165.9,165.89,230.2535]
[1717483704962,0.03763951,165.9,165.89,245.5841]
[1717483708641,0.03763951,165.9,165.89,275.5841]
[1717483710074,0.03763951,165.9,165.89,245.5841]
[1717483710359,0.3467288,165.98,165.94,120.0]
[1717483710569,0.3467288,165.98,165.95,2.5695]
[1717483721449,0.3467288,165.98,165.96,2.2294]
[1717483721651,0.3467288,165.98,165.97,0.34]
[1717483723679,0.3467288,165.98,165.97,0.17]
[1717483723975,0.3467288,165.98,165.97,0.34]
[1717483724678,0.3467288,165.98,165.97,0.17]
[1717483724979,0.3467288,165.98,165.96,0.34]
[1717483726062,9.6059288,165.98,165.94,2.2296]
[1717483726269,7.03,165.97,165.93,2.2297]
[1717483726953,9.2593,165.97,165.93,2.2297]
[1717483727151,7.03,165.97,165.93,2.2297]
[1717483727472,9.0581288,165.98,165.93,2.2297]
[1717483727653,6.8289288,165.98,165.94,2.5696]
[1717483727861,7.03,165.97,165.94,2.5696]
[1717483728352,9.0581288,165.98,165.94,2.5696]
[1717483728556,7.03,165.97,165.94,2.5696]
[1717483729358,6.8289288,165.98,165.95,2.2295]
[1717483729557,7.03,165.97,165.95,2.2295]
[1717483730280,7.3767288,165.98,165.96,0.17]
[1717483730475,0.3467288,165.98,165.96,0.17]
[1717483730677,7.3767288,165.98,165.96,2.3994]
[1717483731080,0.3467288,165.98,165.96,0.17]
[1717483732479,0.3467288,165.98,165.97,2.2293]
[1717483732675,0.3467288,165.98,165.97,7.0279]
[1717483733984,0.3467288,165.98,165.97,2.5693]
[1717483763349,0.3467288,165.98,165.96,2.2293]
[1717483763546,0.3467288,165.98,165.97,2.2293]
[1717483763748,7.3767288,165.98,165.97,2.2293]
[1717483764054,7.3767288,165.98,165.96,2.2293]
[1717483764451,7.03,165.97,165.96,2.2293]
[1717483764748,7.03,165.97,165.96,2.5693]
[1717483765942,7.03,165.97,165.96,2.3993]
[1717483766134,0.3467288,165.98,165.95,2.2295]
[1717483766339,7.03,165.96,165.95,2.2295]
[1717483767728,7.03,165.96,165.95,2.3995]
[1717483769769,7.03,165.96,165.89,121.04844501]
[1717483769967,7.03,165.96,165.91,2.23]
[1717483769968,7.03,165.93,165.91,2.23]
[1717483770280,7.03,165.92,165.9,2.2301]
[1717483770576,7.03,165.91,165.88,2.2304]
[1717483770864,2.2299,165.93,165.88,2.2304]
[1717483770865,7.03,165.9,165.88,2.2304]
[1717483771070,7.03,165.89,165.88,2.2304]
[1717483771444,7.03,165.89,165.85,121.04731636]
[1717483772165,7.03,165.89,165.88,2.2305]
[1717483772371,7.03,165.89,165.85,125.50891636]
[1717483772372,7.03,165.9,165.89,2.2303]
[1717483772867,7.03,165.9,165.89,2.4003]
[1717483779676,7.03,165.9,165.88,2.2304]
[1717483779847,7.03,165.9,165.89,2.2303]
[1717483780047,7.03,165.9,165.89,2.4003]
[1717483785181,7.5116682,166.02,165.89,120.17]
[1717483785364,7.03,165.97,165.95,2.2295]
[1717483785861,0.8253682,166.02,165.96,2.2294]
[1717483785862,2.2288,166.01,165.96,2.2294]
[1717483786177,7.03,165.99,165.97,2.2293]
[1717483786383,7.03,166.0,165.97,2.2293]
[1717483787677,3.0539682,166.02,165.97,2.3993]
[1717483787859,7.03,166.0,165.97,2.5693]
[1717483788556,3.0539682,166.02,165.97,2.5693]
[1717483788757,7.03,166.0,165.97,2.5693]
[1717483790161,2.2287,166.01,165.97,0.34]
[1717483790491,7.03,165.99,165.97,0.34]
[1717483792160,7.03,165.99,165.97,0.17]
[1717483792373,0.8253682,166.02,165.97,141.7924]
[1717483792587,0.8253682,166.02,165.97,144.1917]
[1717483796599,0.8253682,166.02,165.97,128.6602]
[1717483797069,7.8553682,166.02,165.97,128.6602]
[1717483798394,0.8253682,166.02,165.97,194.0967]
[1717483798701,0.8253682,166.02,165.97,196.3588]
[1717483799885,0.8253682,166.02,165.97,189.3288]
[1717483800077,0.8253682,166.02,165.97,196.3588]
[1717483800275,0.8253682,166.02,165.97,190.2679]
[1717483800702,0.8253682,166.02,165.97,183.2379]
[1717483801903,0.8253682,166.02,165.97,27.0279]
[1717483802098,0.8253682,166.02,165.97,22.3993]
[1717483802279,7.03,166.0,165.97,2.2293]
[1717483802485,7.03,165.99,165.96,2.2293]
[1717483802792,3.0540682,166.02,165.97,2.2293]
[1717483802997,7.03,166.0,165.97,2.2293]
[1717483803201,7.03,165.99,165.96,2.2293]
[1717483803578,7.03,165.99,165.95,2.2295]
[1717483803776,7.3767288,165.98,165.95,2.2295]
[1717483804703,7.3767288,165.98,165.96,0.17]
[1717483804889,7.3767288,165.98,165.96,2.5694]
[1717483806701,0.3467288,165.98,165.96,2.5694]
[1717483807990,7.3767288,165.98,165.96,2.5694]
[1717483809009,7.03,165.97,165.96,2.3994]
[1717483809218,7.03,165.97,165.96,0.17]
[1717483809385,7.03,165.97,165.95,2.2295]
[1717483809582,7.03,165.97,165.91,126.6902]
[1717483809583,7.03,165.96,165.94,2.5696]
[1717483810504,7.03,165.96,165.93,2.2298]
[1717483810713,7.03,165.94,165.89,126.691]
[1717483810888,7.03,165.94,165.92,2.2298]
[1717483812613,7.03,165.95,165.92,2.2298]
[1717483813819,0.3467288,165.98,165.92,2.2298]
[1717483813820,2.5759288,165.98,165.93,2.3998]
[1717483814026,7.3767288,165.98,165.94,2.3996]
[1717483814202,0.3467288,165.98,165.95,2.3995]
[1717483814596,7.3767288,165.98,165.95,2.3995]
[1717483815819,0.3467288,165.98,165.96,2.3993]
[1717483816122,7.3767288,165.98,165.96,0.17]
[1717483816320,0.3467288,165.98,165.96,0.17]
[1717483817124,7.3767288,165.98,165.96,0.17]
[1717483817414,0.3467288,165.98,165.96,2.3994]
[1717483818335,0.3467288,165.98,165.97,2.3993]
[1717483818692,0.3467288,165.98,165.97,2.5693]
[1717483819310,0.3467288,165.98,165.97,0.34]
[1717483820422,0.3467288,165.98,165.97,2.5693]
[1717483839618,0.3467288,165.98,165.97,7.0279]
[1717483839824,0.3467288,165.98,165.97,14.31835199]
[1717483840019,0.3467288,165.98,165.97,13.7158]
[1717483840327,0.3467288,165.98,165.97,20.7458]
[1717483841634,0.3467288,165.98,165.97,7.0279]
[1717483842444,0.3467288,165.98,165.97,2.5693]
[1717483845623,0.3467288,165.98,165.97,0.34]
[1717483846447,0.3467288,165.98,165.97,2.5693]
[1717483855437,7.3767288,165.98,165.97,0.17]
[1717483855838,7.3767288,165.98,165.96,2.2293]
[1717483856853,9.2593,165.97,165.92,2.2298]
[1717483857053,7.03,165.94,165.92,2.2298]
[1717483858058,7.03,165.94,165.93,2.2298]
[1717483858275,7.03,165.94,165.93,2.5698]
[1717483860267,7.03,165.94,165.93,2.2298]
[1717483860774,7.03,165.94,165.91,2.23]
[1717483860978,7.03,165.93,165.91,2.23]
[1717483863068,7.03,165.94,165.92,2.2299]
[1717483863265,0.3467288,165.98,165.95,2.2295]
[1717483863493,0.3467288,165.98,165.96,2.3994]
[1717483863789,0.3467288,165.98,165.96,2.2294]
[1717483863790,7.3767288,165.98,165.96,2.2294]
[1717483864165,7.3767288,165.98,165.95,2.3994]
[1717483864787,0.3467288,165.98,165.96,0.17]
[1717483864994,0.3467288,165.98,165.96,2.3994]
[1717483865204,0.3467288,165.98,165.97,0.17]
[1717483865692,0.3467288,165.98,165.97,2.3993]
[1717483865994,0.3467288,165.98,165.97,2.5693]
[1717483866983,0.3467288,165.98,165.97,0.34]
[1717483867996,0.3467288,165.98,165.97,2.5693]
[1717483880285,0.3467288,165.98,165.96,120.0]
[1717483880286,0.3467288,165.98,165.96,2.2294]
[1717483880488,7.03,165.97,165.93,120.0]
[1717483880677,0.3467288,165.98,165.93,120.0]
[1717483880874,7.03,165.96,165.93,120.0]
[1717483881099,7.03,165.96,165.95,2.2295]
[1717483881897,7.03,165.96,165.95,2.5695]
[1717483883106,0.3467288,165.98,165.95,2.5695]
[1717483883311,7.03,165.97,165.96,0.34]
[1717483883900,7.03,165.97,165.96,0.17]
[1717483884287,7.03,165.97,165.94,2.2296]
[1717483884488,7.03,165.96,165.95,0.17]
[1717483885707,7.03,165.96,165.94,2.2296]
[1717483886085,7.03,165.95,165.94,2.2296]
[1717483886288,7.03,165.95,165.94,2.5696]
[1717483887711,0.3467288,165.98,165.95,2.2295]
[1717483888500,0.3467288,165.98,165.94,2.5696]
[1717483889584,2.5758288,165.98,165.94,2.5696]
[1717483890318,2.5758288,165.98,165.94,0.34]
[1717483890502,9.1429288,165.98,165.94,0.17]
[1717483890692,7.03,165.95,165.94,0.17]
[1717483895724,0.3467288,165.98,165.92,120.0]
[1717483896023,0.3467288,165.98,165.93,0.34]
[1717483896523,7.03,165.97,165.93,0.34]
[1717483896726,7.03,165.96,165.94,2.2296]
[1717483897022,0.3467288,165.98,165.95,0.34]
[1717483897325,7.03,165.97,165.95,0.34]
[1717483897519,7.03,165.96,165.95,0.34]
[1717483898154,0.3467288,165.98,165.95,0.34]
[1717483898425,7.03,165.97,165.95,2.5695]
[1717483900135,0.3467288,165.98,165.95,2.5695]
[1717483900308,7.3767288,165.98,165.95,2.5695]
[1717483900508,0.3467288,165.98,165.95,2.5695]
[1717483901033,7.3767288,165.98,165.95,2.5695]
[1717483901329,0.3467288,165.98,165.95,2.5695]
[1717483901633,7.3767288,165.98,165.95,2.5695]
[1717483903628,0.3467288,165.98,165.95,2.5695]
[1717483903831,7.3767288,165.98,165.95,2.5695]
[1717483904131,7.03,165.97,165.95,0.34]
[1717483906736,0.3467288,165.98,165.95,0.34]
[1717483906939,7.3767288,165.98,165.95,0.34]
[1717483907737,7.03,165.97,165.95,0.34]
[1717483908635,6.2687,165.96,165.87,4.4612]
[1717483908836,7.03,165.92,165.88,120.0]
[1717483909131,7.03,165.92,165.9,2.2302]
[1717483910718,7.03,165.92,165.91,0.17]
[1717483915144,7.03,165.92,165.9,0.17]
[1717483915347,7.03,165.91,165.9,0.17]
[1717483916158,7.03,165.92,165.9,0.17]
[1717483916641,7.03,165.92,165.9,2.4002]
[1717483921462,7.03,165.91,165.9,0.17]
[1717483923558,7.03,165.91,165.89,0.34]
[1717483923731,7.03,165.9,165.89,0.34]
[1717483924453,7.03,165.9,165.89,0.17]
[1717483924641,2.2299,165.93,165.89,2.4003]
[1717483924842,7.03,165.9,165.89,2.4003]
[1717483925053,7.03,165.9,165.89,2.5703]
[1717483925252,7.03,165.93,165.91,2.2299]
[1717483925466,7.03,165.93,165.92,0.34]
[1717483925835,7.03,165.93,165.92,0.17]
[1717483926043,7.03,165.93,165.9,2.2301]
[1717483926262,7.03,165.93,165.91,0.34]
[1717483926443,7.03,165.92,165.91,0.34]
[1717483928136,7.03,165.92,165.91,0.17]
[1717483929061,7.03,165.92,165.9,2.2301]
[1717483929361,7.03,165.91,165.89,2.5703]
[1717483933144,7.03,165.92,165.89,2.5703]
[1717483933349,7.03,165.92,165.9,2.2302]
[1717483933840,7.03,165.93,165.9,2.2302]
[1717483939066,2.2296,165.95,165.9,2.2302]
[1717483939256,7.03,165.94,165.91,0.34]
[1717483939567,2.2296,165.95,165.91,2.5701]
[1717483939867,7.03,165.93,165.91,0.34]
[1717483941273,7.03,165.93,165.91,0.17]
[1717483941471,2.2297,165.94,165.89,2.2303]
[1717483941472,7.03,165.92,165.9,0.34]
[1717483943081,2.2296,165.95,165.9,2.5701]
[1717483943269,7.03,165.93,165.9,2.5701]
[1717483943570,2.2296,165.95,165.9,2.5701]
[1717483943743,7.03,165.94,165.9,2.5701]
[1717483945280,9.2597,165.94,165.9,2.5701]
[1717483945466,7.03,165.93,165.9,2.5701]
[1717483947283,2.2296,165.95,165.9,2.5701]
[1717483947447,7.03,165.93,165.9,2.5701]